fUSD/lending_fUSD_20260221
["ID","MTS","AMOUNT","RATE_DAILY","PERIOD"]
[406285277,1771689048383,-151.0,0.00043549,7]
[406285278,1771689048425,-252.229916,0.00043549,7]
[406285279,1771689048435,-150.00000001,0.00043611,30]
[406285280,1771689048443,-150.0,0.00043611,30]
[406285281,1771689048452,-1387.03705832,0.00043611,30]
[406285282,1771689048461,-152.59,0.00043621,120]
[406285283,1771689048470,-151.0,0.00043647,120]
[406285284,1771689048479,-84485.0,0.0004365,60]
[406285285,1771689048488,-1328.62,0.00043663,2]
[406285286,1771689048496,-150.0,0.00043673,10]
[406285287,1771689048505,-160.61183194,0.00043673,2]
[406285288,1771689048514,-150.0,0.00043673,10]
[406285289,1771689048524,-159.9049081,0.00043673,10]
[406285290,1771689048533,-561.36896903,0.00043673,10]
[406285291,1771689048542,-151.0,0.00043673,120]
[406285292,1771689048551,-151.0,0.00043673,31]
[406285293,1771689048559,-182.732263,0.00043673,31]
[406285294,1771689048568,-2155.61130807,0.00043713,2]
[406285295,1771689048577,-152.59,0.00043721,120]
[406285296,1771689048587,-356.0,0.00043784,16]
[406285297,1771689048596,-2835.0,0.00043792,16]
[406285298,1771689048605,-189.67,0.000438,120]
[406285299,1771689048614,-2000.0,0.000438,2]
[406285300,1771689048623,-152.59,0.00043821,120]
[406285301,1771689048633,-842.0,0.00043836,120]
[406285302,1771689048642,-175.59193643,0.00043836,2]
[406285303,1771689048651,-177.4092433,0.0004388,60]
[406285304,1771689048659,-237.01,0.000439,14]
[406285305,1771689048668,-642.49,0.000439,120]
[406285306,1771689048677,-2236.06,0.000439,30]
[406285307,1771689048686,-152.59,0.00043921,120]
[406285308,1771689048696,-169.0,0.00043952,3]
[406285309,1771689048705,-2645.30804669,0.00044,120]
[406285310,1771689048714,-1225.84680065,0.00044,2]
[406285311,1771689048724,-189.5529213,0.00044,120]
[406285312,1771689048733,-152.59,0.00044021,120]
[406285313,1771689048742,-471.47210413,0.0004406,30]
[406285314,1771689048751,-2924.16558,0.00044078,7]
[406285315,1771689048760,-999.0,0.00044136,120]
[406285316,1771689048769,-150.0,0.00044185,120]
[406285317,1771689048778,-250.0,0.00044221,10]
[406285318,1771689048787,-250.0,0.00044221,10]
[406285319,1771689048797,-731.0,0.00044222,30]
[406285320,1771689048806,-154.0,0.000443,120]
[406285321,1771689048815,-1000.0,0.000443,30]
[406285322,1771689048825,-733.851,0.000443,30]
[406285323,1771689048834,-1500.0,0.000443,120]
[406285324,1771689048843,-1500.0,0.000443,120]
[406285325,1771689048851,-1500.0,0.000443,120]
[406285326,1771689048861,-1500.0,0.000443,120]
[406285327,1771689048872,-1136.897,0.000443,120]
[406285328,1771689048882,-150.0,0.00044316,120]
[406285329,1771689048891,-2820.0,0.00044356,16]
[406285330,1771689048900,-1432.83,0.00044383,120]
[406285331,1771689048909,-1432.83,0.00044383,120]
[406285332,1771689048918,-1432.83,0.00044383,120]
[406285333,1771689048928,-1432.83,0.00044383,120]
[406285334,1771689048937,-1432.83,0.00044383,120]
[406285335,1771689048947,-1432.83,0.00044383,120]
[406285336,1771689048956,-1432.83,0.00044383,120]
[406285337,1771689048965,-1432.83,0.00044383,120]
[406285338,1771689048974,-1432.83,0.00044383,120]
[406285339,1771689048983,-1432.83,0.00044383,120]
[406285340,1771689048992,-1432.83,0.00044383,120]
[406285341,1771689049001,-1432.83,0.00044383,120]
[406285342,1771689049010,-1432.83,0.00044383,120]
[406285343,1771689049019,-1432.83,0.00044383,120]
[406285344,1771689049028,-1432.83,0.00044383,120]
[406285345,1771689049038,-1432.83,0.00044383,120]
[406285346,1771689049047,-1432.83,0.00044383,120]
[406285347,1771689049056,-1432.83,0.00044383,120]
[406285348,1771689049065,-1432.83,0.00044383,120]
[406285349,1771689049074,-1432.83,0.00044383,120]
[406285350,1771689049087,-1432.83,0.00044383,120]
[406285351,1771689049096,-1432.83,0.00044383,120]
[406285352,1771689049105,-1432.83,0.00044383,120]
[406285353,1771689049114,-1432.98436516,0.00044383,120]
[406285354,1771689049124,-500.0,0.00044383,120]
[406285355,1771689049133,-500.0,0.00044383,120]
[406285356,1771689049142,-349.42543252,0.00044383,120]
[406285357,1771689049151,-501.048194,0.00044383,30]
[406285358,1771689049160,-405.94316194,0.00044383,2]
[406285359,1771689049169,-155.24383259,0.00044383,120]
[406285360,1771689049177,-542.92231509,0.00044383,120]
[406285361,1771689049186,-13549.687389,0.00044383,120]
[406285362,1771689049195,-13511.84739,0.00044383,120]
[406285363,1771689049204,-1719.769983,0.00044383,120]
[406285364,1771689049212,-222.62547097,0.00044383,120]
[406285365,1771689049222,-171.28500779,0.00044383,120]
[406285366,1771689049231,-500.0,0.00044383,120]
[406285367,1771689049240,-500.0,0.00044383,120]
[406285368,1771689049248,-500.0,0.00044383,120]
[406285369,1771689049257,-500.0,0.00044383,120]
[406285370,1771689049266,-633.37449218,0.00044383,120]
[406285371,1771689049275,-500.0,0.00044383,120]
[406285372,1771689049284,-500.0,0.00044383,120]
[406285373,1771689049293,-500.0,0.00044383,120]
[406285374,1771689049303,-500.0,0.00044383,120]
[406285375,1771689049311,-500.0,0.00044383,120]
[406285376,1771689049321,-500.0,0.00044383,120]
[406285377,1771689049330,-422.24347829,0.00044383,120]
[406285378,1771689049339,-747.8,0.00044383,120]
[406285379,1771689049348,-747.8,0.00044383,120]
[406285380,1771689049357,-747.8,0.00044383,120]
[406285381,1771689049366,-747.8,0.00044383,120]
[406285382,1771689049375,-747.8,0.00044383,120]
[406285383,1771689049385,-747.8,0.00044383,120]
[406285384,1771689049394,-747.8,0.00044383,120]
[406285385,1771689049403,-747.8,0.00044383,120]
[406285386,1771689049413,-747.8,0.00044383,120]
[406285387,1771689049422,-747.8,0.00044383,120]
[406285388,1771689049432,-747.8,0.00044383,120]
[406285389,1771689049441,-747.8,0.00044383,120]
[406285390,1771689049450,-747.8,0.00044383,120]
[406285391,1771689049459,-747.8,0.00044383,120]
[406285392,1771689049468,-747.8,0.00044383,120]
[406285393,1771689049477,-747.8,0.00044383,120]
[406285394,1771689049487,-747.8,0.00044383,120]
[406285395,1771689049496,-747.8,0.00044383,120]
[406285396,1771689049506,-747.8,0.00044383,120]
[406285397,1771689049515,-747.8,0.00044383,120]
[406285398,1771689049524,-747.8,0.00044383,120]
[406285399,1771689049533,-747.8,0.00044383,120]
[406285400,1771689049543,-747.8,0.00044383,120]
[406285401,1771689049552,-747.8,0.00044383,120]
[406285402,1771689049561,-563.61,0.00044383,30]
[406285403,1771689049570,-500.0,0.00044383,30]
[406285404,1771689049579,-500.0,0.00044383,30]
[406285405,1771689049587,-500.0,0.00044383,30]
[406285406,1771689049596,-500.0,0.00044383,30]
[406285407,1771689049605,-500.0,0.00044383,120]
[406285408,1771689049614,-500.0,0.00044383,120]
[406285409,1771689049623,-500.0,0.00044383,120]
[406285410,1771689049632,-500.0,0.00044383,120]
[406285411,1771689049641,-500.0,0.00044383,120]
[406285412,1771689049650,-500.0,0.00044383,120]
[406285413,1771689049659,-500.0,0.00044383,120]
[406285414,1771689049669,-500.0,0.00044383,120]
[406285415,1771689049678,-300.52292293,0.00044383,120]
[406285416,1771689049687,-500.0,0.00044383,120]
[406285417,1771689049697,-571.61947417,0.00044383,120]
[406285418,1771689049707,-500.0,0.00044383,120]
[406285419,1771689049716,-500.0,0.00044383,120]
[406285420,1771689049725,-500.0,0.00044383,120]
[406285421,1771689049734,-500.0,0.00044383,120]
[406285422,1771689049743,-500.0,0.00044383,120]
[406285423,1771689049752,-500.0,0.00044383,120]
[406285424,1771689049763,-500.0,0.00044383,120]
[406285425,1771689049772,-500.0,0.00044383,120]
[406285426,1771689049781,-500.0,0.00044383,120]
[406285427,1771689049791,-500.0,0.00044383,120]
[406285428,1771689049800,-500.0,0.00044383,120]
[406285429,1771689049810,-500.0,0.00044383,120]
[406285430,1771689049820,-559.17104002,0.00044383,120]
[406285431,1771689049829,-500.0,0.00044383,120]
[406285432,1771689049839,-500.0,0.00044383,120]
[406285433,1771689049849,-500.0,0.00044383,120]
[406285434,1771689049858,-500.0,0.00044383,120]
[406285435,1771689049868,-500.0,0.00044383,120]
[406285436,1771689049878,-586.91900097,0.00044383,120]
[406285437,1771689049888,-500.0,0.00044383,120]
[406285438,1771689049897,-562.06401822,0.00044383,120]
[406285439,1771689049907,-533.10848927,0.00044383,120]
[406285440,1771689049917,-563.83999593,0.00044383,120]
[406285441,1771689049927,-616.66,0.00044383,120]
[406285442,1771689049937,-500.0,0.00044383,30]
[406285443,1771689049946,-500.0,0.00044383,120]
[406285444,1771689049956,-500.0,0.00044383,120]
[406285445,1771689049966,-500.0,0.00044383,120]
[406285446,1771689049976,-500.0,0.00044383,120]
[406285447,1771689049987,-516.28849658,0.00044383,120]
[406285448,1771689049998,-505.40824225,0.00044383,120]
[406285449,1771689050008,-500.0,0.00044383,120]
[406285450,1771689050019,-500.0,0.00044383,120]
[406285451,1771689050029,-500.0,0.00044383,120]
[406285452,1771689050039,-500.0,0.00044383,120]
[406285453,1771689050048,-500.0,0.00044383,120]
[406285454,1771689050058,-500.0,0.00044383,120]
[406285455,1771689050067,-500.0,0.00044383,120]
[406285456,1771689050079,-500.0,0.00044383,120]
[406285457,1771689050088,-500.0,0.00044383,120]
[406285458,1771689050097,-500.0,0.00044383,120]
[406285459,1771689050106,-227.71603119,0.00044383,120]
[406285460,1771689050115,-475.39748169,0.00044383,120]
[406285461,1771689050124,-500.0,0.00044383,120]
[406285462,1771689050133,-500.0,0.00044383,120]
[406285463,1771689050142,-500.0,0.00044383,120]
[406285464,1771689050152,-500.0,0.00044383,120]
[406285465,1771689050161,-500.0,0.00044383,120]
[406285466,1771689050171,-500.0,0.00044383,120]
[406285467,1771689050179,-384.7647377,0.00044383,120]
[406285468,1771689050189,-500.0,0.00044383,120]
[406285469,1771689050198,-500.0,0.00044383,120]
[406285470,1771689050207,-500.0,0.00044383,120]
[406285471,1771689050216,-500.0,0.00044383,120]
[406285472,1771689050225,-500.0,0.00044383,120]
[406285473,1771689050235,-500.0,0.00044383,120]
[406285474,1771689050244,-500.0,0.00044383,120]
[406285475,1771689050253,-500.0,0.00044383,120]
[406285476,1771689050263,-500.0,0.00044383,120]
[406285477,1771689050272,-500.0,0.00044383,120]
[406285478,1771689050281,-500.0,0.00044383,120]
[406285479,1771689050290,-500.0,0.00044383,120]
[406285480,1771689050302,-500.0,0.00044383,120]
[406285481,1771689050312,-500.0,0.00044383,120]
[406285482,1771689050321,-500.0,0.00044383,120]
[406285483,1771689050331,-500.0,0.00044383,120]
[406285484,1771689050341,-500.0,0.00044383,120]
[406285485,1771689050350,-500.0,0.00044383,120]
[406285486,1771689050359,-198.06,0.00044383,120]
[406285487,1771689050369,-500.0,0.00044383,120]
[406285488,1771689050380,-500.0,0.00044383,120]
[406285489,1771689050390,-500.0,0.00044383,120]
[406285490,1771689050399,-500.0,0.00044383,120]
[406285491,1771689050409,-565.62818161,0.00044383,120]
[406285492,1771689050420,-615.545633,0.00044383,120]
[406285493,1771689050430,-557.10007155,0.00044383,120]
[406285494,1771689050440,-500.0,0.00044383,120]
[406285495,1771689050449,-500.0,0.00044383,120]
[406285496,1771689050458,-500.0,0.00044383,120]
[406285497,1771689050468,-500.0,0.00044383,120]
[406285498,1771689050478,-500.0,0.00044383,120]
[406285499,1771689050487,-500.0,0.00044383,120]
[406285500,1771689050497,-500.0,0.00044383,120]
[406285501,1771689050506,-500.0,0.00044383,120]
[406285502,1771689050517,-556.54595283,0.00044383,120]
[406285503,1771689050527,-500.0,0.00044383,120]
[406285504,1771689050537,-585.50687574,0.00044383,120]
[406285505,1771689050547,-500.0,0.00044383,120]
[406285506,1771689050557,-500.0,0.00044383,120]
[406285507,1771689050566,-500.0,0.00044383,120]
[406285508,1771689050576,-358.8,0.00044383,120]
[406285509,1771689050585,-500.0,0.00044383,120]
[406285510,1771689050596,-500.0,0.00044383,120]
[406285511,1771689050607,-500.0,0.00044383,120]
[406285512,1771689050617,-500.0,0.00044383,120]
[406285513,1771689050626,-500.0,0.00044383,120]
[406285514,1771689050635,-500.0,0.00044383,120]
[406285515,1771689050646,-605.60363634,0.00044383,120]
[406285516,1771689050656,-500.0,0.00044383,120]
[406285517,1771689050666,-616.10251205,0.00044383,120]
[406285518,1771689050675,-500.0,0.00044383,120]
[406285519,1771689050685,-544.18641415,0.00044383,120]
[406285520,1771689050694,-500.0,0.00044383,120]
[406285521,1771689050703,-260.31590542,0.00044383,120]
[406285522,1771689050712,-500.0,0.00044383,120]
[406285523,1771689050722,-500.0,0.00044383,120]
[406285524,1771689050731,-500.0,0.00044383,120]
[406285525,1771689050740,-500.0,0.00044383,120]
[406285526,1771689050749,-500.0,0.00044383,120]
[406285527,1771689050758,-500.0,0.00044383,120]
[406285528,1771689050767,-500.0,0.00044383,120]
[406285529,1771689050776,-500.0,0.00044383,120]
[406285530,1771689050788,-500.0,0.00044383,120]
[406285531,1771689050797,-500.0,0.00044383,120]
[406285532,1771689050809,-618.09886318,0.00044383,120]
[406285533,1771689050819,-606.24789566,0.00044383,120]
[406285534,1771689050828,-523.1939441,0.00044383,120]
[406285535,1771689050838,-500.0,0.00044383,120]
[406285536,1771689050848,-500.0,0.00044383,120]
[406285537,1771689050857,-500.0,0.00044383,120]
[406285538,1771689050866,-500.0,0.00044383,120]
[406285539,1771689050875,-501.84044775,0.00044383,120]
[406285540,1771689050885,-500.0,0.00044383,120]
[406285541,1771689050895,-600.59730575,0.00044383,120]
[406285542,1771689050904,-500.0,0.00044383,120]
[406285543,1771689050916,-500.0,0.00044383,120]
[406285544,1771689050925,-500.0,0.00044383,120]
[406285545,1771689050934,-500.0,0.00044383,120]
[406285546,1771689050944,-500.0,0.00044383,120]
[406285547,1771689050953,-500.0,0.00044383,120]
[406285548,1771689050962,-500.0,0.00044383,120]
[406285549,1771689050980,-500.0,0.00044383,120]
[406285550,1771689050991,-500.0,0.00044383,120]
[406285551,1771689051000,-500.0,0.00044383,120]
[406285552,1771689051009,-500.0,0.00044383,120]
[406285553,1771689051019,-500.0,0.00044383,120]
[406285554,1771689051028,-500.0,0.00044383,120]
[406285555,1771689051037,-500.0,0.00044383,120]
[406285556,1771689051047,-500.0,0.00044383,120]
[406285557,1771689051056,-573.45,0.00044383,120]
[406285558,1771689051065,-604.56,0.00044383,120]
[406285559,1771689051077,-520.66,0.00044383,120]
[406285560,1771689051087,-500.0,0.00044383,120]
[406285561,1771689051097,-500.0,0.00044383,120]
[406285562,1771689051107,-500.0,0.00044383,120]
[406285563,1771689051116,-500.0,0.00044383,120]
[406285564,1771689051126,-524.81685529,0.00044383,120]
[406285565,1771689051136,-649.54617802,0.00044383,120]
[406285566,1771689051146,-628.89232805,0.00044383,120]
[406285567,1771689051158,-508.77427405,0.00044383,120]
[406285568,1771689051168,-603.8,0.00044383,90]
[406285569,1771689051178,-520.95461485,0.00044383,120]
[406285570,1771689051188,-616.13063366,0.00044383,120]
[406285571,1771689051198,-580.31926686,0.00044383,120]
[406285572,1771689051208,-590.94427843,0.00044383,120]
[406285573,1771689051219,-500.0,0.00044383,120]
[406285574,1771689051229,-500.0,0.00044383,120]
[406285575,1771689051239,-151.98,0.00044383,120]
[406285576,1771689051248,-500.0,0.00044383,120]
[406285577,1771689051258,-500.0,0.00044383,120]
[406285578,1771689051267,-500.0,0.00044383,120]
[406285579,1771689051277,-192.09250272,0.00044383,120]
[406285580,1771689051286,-500.0,0.00044383,120]
[406285581,1771689051296,-500.0,0.00044383,120]
[406285582,1771689051305,-500.0,0.00044383,120]
[406285583,1771689051315,-500.0,0.00044383,120]
[406285584,1771689051325,-500.0,0.00044383,120]
[406285585,1771689051338,-510.03517147,0.00044383,120]
[406285586,1771689051348,-500.0,0.00044383,120]
[406285587,1771689051358,-500.0,0.00044383,120]
[406285588,1771689051368,-500.0,0.00044383,120]
[406285589,1771689051377,-500.0,0.00044383,120]
[406285590,1771689051387,-500.0,0.00044383,120]
[406285591,1771689051396,-500.0,0.00044383,120]
[406285592,1771689051406,-500.0,0.00044383,120]
[406285593,1771689051416,-500.0,0.00044383,120]
[406285594,1771689051425,-500.0,0.00044383,120]
[406285595,1771689051435,-500.0,0.00044383,120]
[406285596,1771689051445,-500.0,0.00044383,120]
[406285597,1771689051454,-500.0,0.00044383,120]
[406285598,1771689051464,-500.0,0.00044383,120]
[406285599,1771689051474,-500.0,0.00044383,120]
[406285600,1771689051484,-500.0,0.00044383,120]
[406285601,1771689051494,-500.0,0.00044383,120]
[406285602,1771689051504,-500.0,0.00044383,120]
[406285603,1771689051513,-500.0,0.00044383,120]
[406285604,1771689051523,-500.0,0.00044383,120]
[406285605,1771689051536,-633.63027137,0.00044383,120]
[406285606,1771689051546,-500.0,0.00044383,120]
[406285607,1771689051557,-515.18932021,0.00044383,120]
[406285608,1771689051567,-500.0,0.00044383,120]
[406285609,1771689051577,-295.88,0.00044383,120]
[406285610,1771689051587,-294.54685048,0.00044383,120]
[406285611,1771689051597,-500.0,0.00044383,120]
[406285612,1771689051607,-500.0,0.00044383,120]
[406285613,1771689051618,-500.0,0.00044383,120]
[406285614,1771689051628,-500.0,0.00044383,120]
[406285615,1771689051637,-537.07235334,0.00044383,120]
[406285616,1771689051647,-729.0,0.00044383,30]
[406285617,1771689051658,-842.0,0.00044384,120]
[406285618,1771689051668,-246.36,0.000444,14]
[406285619,1771689051678,-150.0,0.000444,120]
[406285620,1771689051687,-150.0,0.000444,120]
[406285621,1771689051697,-150.0,0.00044464,14]
[406285622,1771689051707,-154.65185729,0.00044499,120]
[406285623,1771689051717,-1600.0,0.000445,16]
[406285624,1771689051727,-413.71550616,0.00044524,14]
[406285625,1771689051740,-1000.0,0.00044527,14]
[406285626,1771689051750,-150.0,0.00044547,14]
[406285627,1771689051760,-25000.0,0.00044549,15]
[406285628,1771689051770,-5008.1800114,0.00044556,15]
[406285629,1771689051779,-25000.0,0.00044558,15]
[406285630,1771689051790,-11929.24706694,0.00044559,15]
[406285631,1771689051801,-25000.0,0.00044567,15]
[406285632,1771689051811,-25000.0,0.00044572,15]
[406285633,1771689051821,-1000.0,0.00044576,14]
[406285634,1771689051831,-50000.0,0.000446,120]
[406285635,1771689051842,-1600.0,0.000446,16]
[406285636,1771689051852,-2000.0,0.0004461,120]
[406285637,1771689051862,-2000.0,0.0004461,120]
[406285638,1771689051873,-2000.0,0.0004461,120]
[406285639,1771689051884,-2000.0,0.0004461,120]
[406285640,1771689051893,-2000.0,0.0004461,120]
[406285641,1771689051903,-281.41629532,0.00044614,10]
[406285642,1771689051914,-1000.0,0.00044637,14]
[406285643,1771689051927,-1000.0,0.00044664,14]
[406285644,1771689051939,-50000.0,0.000447,120]
[406285645,1771689051949,-1600.0,0.000447,16]
[406285646,1771689051959,-1000.0,0.00044741,14]
[406285647,1771689051968,-500.0,0.00044749,120]
[406285648,1771689051978,-500.0,0.00044749,120]
[406285649,1771689051988,-200.0,0.00044749,120]
[406285650,1771689051998,-500.0,0.00044749,120]
[406285651,1771689052009,-500.0,0.00044749,120]
[406285652,1771689052020,-500.0,0.00044749,120]
[406285653,1771689052204,-500.0,0.00044749,120]
[406285654,1771689052213,-500.0,0.00044749,30]
[406285655,1771689052223,-500.0,0.00044749,120]
[406285656,1771689052231,-500.0,0.00044749,120]
[406285657,1771689052242,-634.99,0.00044749,30]
[406285658,1771689052252,-370.53793113,0.00044749,120]
[406285659,1771689052265,-500.0,0.00044749,7]
[406285660,1771689052274,-315.63046994,0.00044749,120]
[406285661,1771689052283,-500.0,0.00044749,120]
[406285662,1771689052292,-513.64052501,0.00044749,120]
[406285663,1771689052302,-457.87,0.00044749,120]
[406285664,1771689052311,-515.80004554,0.00044749,120]
[406285665,1771689052322,-503.46476353,0.00044749,30]
[406285666,1771689052331,-50000.0,0.0004475,120]
[406285667,1771689052342,-212.35084953,0.00044758,120]
[406285668,1771689052352,-476.32058882,0.00044768,10]
[406285669,1771689052361,-151.28676486,0.00044771,2]
[406285670,1771689052370,-1000.0,0.00044777,14]
[406285671,1771689052380,-150.0,0.00044778,120]
[406285672,1771689052389,-309.92836003,0.0004478,60]
[406285673,1771689052398,-691.0,0.0004478,60]
[406285674,1771689052407,-150.0,0.00044783,120]
[406285675,1771689052416,-1137.72101375,0.000448,120]
[406285676,1771689052425,-50000.0,0.000448,120]
[406285677,1771689052434,-50000.0,0.000448,120]
[406285678,1771689052444,-2464.0,0.000448,16]
[406285679,1771689052453,-517.0,0.000448,28]
[406285680,1771689052463,-683.0480584,0.00044818,2]
[406285681,1771689052472,-666.0,0.00044849,30]
[406285682,1771689052481,-300.0,0.00044849,30]
[406285683,1771689052491,-50000.0,0.0004485,120]
[406285684,1771689052499,-1000.0,0.0004487,3]
[406285685,1771689052508,-1000.0,0.0004487,3]
[406285686,1771689052518,-1000.0,0.0004487,3]
[406285687,1771689052528,-905.22771213,0.0004487,3]
[406285688,1771689052537,-500.0,0.0004487,3]
[406285689,1771689052547,-50000.0,0.000449,120]
[406285690,1771689052557,-842.0,0.00044932,120]
[406285691,1771689052566,-610.342215,0.00044932,120]
[406285692,1771689052575,-610.342215,0.00044932,120]
[406285693,1771689052583,-610.342215,0.00044932,120]
[406285694,1771689052590,-610.342215,0.00044932,120]
[406285695,1771689052598,-350.0,0.00044957,2]
[406285696,1771689052607,-1000.0,0.0004497,3]
[406285697,1771689052616,-500.0,0.0004497,3]
[406285698,1771689052625,-1000.0,0.0004497,3]
[406285699,1771689052634,-500.0,0.0004497,3]
[406285700,1771689052643,-500.0,0.0004497,3]
[406285701,1771689052653,-1000.0,0.0004497,3]
[406285702,1771689052662,-500.0,0.00044973,10]
[406285703,1771689052671,-767.72112565,0.00044978,28]
[406285704,1771689052681,-178.9966715,0.00044978,28]
[406285705,1771689052690,-614.11930782,0.00044978,18]
[406285706,1771689052700,-333.72091666,0.00044978,2]
[406285707,1771689052710,-183.35442833,0.00044978,30]
[406285708,1771689052721,-300.0,0.00044999,30]
[406285709,1771689052730,-666.0,0.00044999,30]
[406285710,1771689052738,-513.62,0.00044999,120]
[406285711,1771689052748,-170.88294686,0.00044999,120]
[406285712,1771689052756,-500.0,0.00044999,120]
[406285713,1771689052765,-500.0,0.00044999,120]
[406285714,1771689052774,-500.0,0.00044999,120]
[406285715,1771689052783,-504.39683652,0.00044999,120]
[406285716,1771689052791,-500.0,0.00044999,30]
[406285717,1771689052799,-467.51116128,0.00044999,120]
[406285718,1771689052807,-500.0,0.00044999,120]
[406285719,1771689052815,-352.67828665,0.00044999,7]
[406285720,1771689052825,-500.0,0.00044999,120]
[406285721,1771689052834,-150.0,0.00045,120]
[406285722,1771689052843,-9682.4,0.00045,120]
[406285723,1771689052851,-52734.06,0.00045,120]
[406285724,1771689052860,-1277.0,0.00045,120]
[406285725,1771689052868,-2813.58,0.00045,120]
[406285726,1771689052877,-84485.0,0.00045,60]
[406285727,1771689052886,-1000.0,0.00045004,14]
[406285728,1771689052895,-1000.0,0.00045021,14]
[406285729,1771689052904,-150.0,0.00045038,14]
[406285730,1771689052913,-300.0,0.00045039,30]
[406285731,1771689052922,-666.0,0.00045039,30]
[406285732,1771689052931,-150.41557459,0.0004504,2]
[406285733,1771689052941,-300.0,0.00045042,30]
[406285734,1771689052952,-666.0,0.00045042,30]
[406285735,1771689052961,-300.0,0.00045042,30]
[406285736,1771689052971,-352.10495522,0.00045042,30]
[406285737,1771689052979,-300.0,0.00045043,30]
[406285738,1771689052989,-300.0,0.00045043,30]
[406285739,1771689052998,-153.411845,0.00045044,120]
[406285740,1771689053007,-151.0,0.00045044,120]
[406285741,1771689053016,-173.256273,0.00045044,120]
[406285742,1771689053026,-153.681994,0.00045044,120]
[406285743,1771689053036,-267.46074303,0.00045058,30]
[406285744,1771689053045,-155.0,0.00045059,120]
[406285745,1771689053055,-976.28503175,0.00045059,60]
[406285746,1771689053064,-239.84119403,0.00045059,31]
[406285747,1771689053074,-248.71531821,0.00045059,56]
[406285748,1771689053087,-257.91778498,0.00045059,60]
[406285749,1771689053097,-222.52233017,0.0004506,120]
[406285750,1771689053107,-500.0,0.0004506,120]
[406285751,1771689053116,-500.0,0.0004506,120]
[406285752,1771689053126,-500.0,0.0004506,120]
[406285753,1771689053135,-500.0,0.0004506,120]
[406285754,1771689053144,-500.0,0.0004506,120]
[406285755,1771689053154,-500.0,0.0004506,120]
[406285756,1771689053165,-500.0,0.0004506,120]
[406285757,1771689053174,-500.0,0.0004506,120]
[406285758,1771689053183,-500.0,0.0004506,120]
[406285759,1771689053193,-500.0,0.0004506,120]
[406285760,1771689053202,-174.25393545,0.0004506,120]
[406285761,1771689053211,-500.0,0.0004506,120]
[406285762,1771689053220,-500.0,0.0004506,120]
[406285763,1771689053230,-500.0,0.0004506,120]
[406285764,1771689053239,-500.0,0.0004506,120]
[406285765,1771689053248,-500.0,0.0004506,120]
[406285766,1771689053257,-500.0,0.0004506,120]
[406285767,1771689053266,-500.0,0.0004506,120]
[406285768,1771689053276,-500.0,0.0004506,120]
[406285769,1771689053284,-500.0,0.0004506,120]
[406285770,1771689053294,-620.47311917,0.0004506,120]
[406285771,1771689053303,-500.0,0.0004506,30]
[406285772,1771689053312,-500.0,0.0004506,30]
[406285773,1771689053320,-500.0,0.0004506,30]
[406285774,1771689053330,-500.0,0.0004506,30]
[406285775,1771689053339,-500.0,0.0004506,30]
[406285776,1771689053352,-500.0,0.0004506,30]